[Event "Caplin Hastings Masters 2023-24"]
[Site "Hastings"]
[Date "2023.12.28"]
[Round "1.9"]
[White "Banerjee, Supratit"]
[Black "Ghasi, Ameet K"]
[Result "1/2-1/2"]
[ECO "B15"]
[WhiteElo "1974"]
[BlackElo "2509"]
[Annotator "ChessBase"]
[PlyCount "97"]
[EventDate "2023.12.18"]
[EventType "swiss"]
[EventCountry "ENG"]
[SourceTitle "playchess.com"]
[Source "ChessBase"]
[SourceQuality "1"]
[TimeControl "40/6000+30:3000+30"]

1. e4 {[%emt 0:00:11]} c6 {[%emt 0:01:42]} 2. d4 {[%emt 0:00:32]} d5 {[%emt 0:00:33]} 3. Nd2 {[%emt 0:00:16]} dxe4 {[%emt 0:00:12]} 4. Nxe4 {[%emt 0:00:11]} Nf6 {[%emt 0:00:12]} 5. Nxf6+ {[%emt 0:01:02]} exf6 {[%emt 0:00:04]} 6. c3 {[%emt 0:01:58]} Bd6 {[%emt 0:00:50]} 7. Bd3 {[%emt 0:01:25]} O-O {[%emt 0:00:59]} 8. Ne2 {[%emt 0:00:26]} Re8 {[%emt 0:02:55]} 9. O-O {[%emt 0:00:42]} Nd7 {[%emt 0:03:52]} 10. Bf4 {[%emt 0:04:14]} Nf8 {[%emt 0:02:56]} 11. Bxd6 {[%emt 0:03:20]} Qxd6 {[%emt 0:00:20]} 12. Qd2 {[%emt 0:01:14]} Ng6 {[%emt 0:02:30]} 13. Rfe1 {[%emt 0:03:29]} Bg4 {[%emt 0:25:18]} 14. Ng3 {[%emt 0:13:47]} b6 {[%emt 0:09:16]} 15. Rxe8+ {[%emt 0:05:58]} Rxe8 {[%emt 0:00:17]} 16. Re1 {[%emt 0:00:21]} Rd8 {[%emt 0:13:43]} 17. Qc2 {[%emt 0:05:45]} Be6 {[%emt 0:03:39]} 18. b4 {[%emt 0:11:20]} Qc7 {[%emt 0:08:06]} 19. Bf5 {[%emt 0:08:05]} Nf8 {[%emt 0:00:43]} 20. Bxe6 {[%emt 0:11:37]} Nxe6 {[%emt 0:00:13]} 21. Qe4 {[%emt 0:00:25]} g6 {[%emt 0:00:54]} 22. h4 {[%emt 0:03:00]} h5 {[%emt 0:04:25]} 23. Qf3 {[%emt 0:02:47]} Kg7 {[%emt 0:01:27]} 24. Ne4 {[%emt 0:02:20]} Qf4 {[%emt 0:09:28]} 25. Qxf4 {[%emt 0:04:07]} Nxf4 {[%emt 0:00:02]} 26. Nd2 {[%emt 0:08:00]} Nd5 {[%emt 0:07:10]} 27. Rc1 {[%emt 0:00:41]} g5 {[%emt 0:00:12]} 28. hxg5 {[%emt 0:02:09]} fxg5 {[%emt 0:00:01]} 29. g3 {[%emt 0:00:36]} Re8 {[%emt 0:04:22]} 30. Kf1 {[%emt 0:01:00]} f6 {[%emt 0:00:58]} 31. a3 {[%emt 0:01:05]} Kg6 {[%emt 0:00:34]} 32. c4 {[%emt 0:00:29]} Nc7 {[%emt 0:00:15]} 33. Nf3 {[%emt 0:01:34]} Kf5 {[%emt 0:03:05]} 34. Rd1 {[%emt 0:00:41]} Rd8 {[%emt 0:01:52]} 35. Kg2 {[%emt 0:01:01]} Rd7 {[%emt 0:00:46]} 36. Re1 {[%emt 0:00:58]} Ne6 {[%emt 0:01:07]} 37. Rd1 {[%emt 0:00:16]} h4 {[%emt 0:02:14]} 38. d5 {[%emt 0:01:29]} h3+ {[%emt 0:00:33]} 39. Kh2 {[%emt 0:00:21]} cxd5 {[%emt 0:00:30]} 40. cxd5 {[%emt 0:00:15]} Nc7 {[%emt 0:00:44]} 41. Nd4+ {[%emt 0:51:03]} Kg6 {[%emt 0:23:55]} 42. Nc6 {[%emt 0:00:00]} g4 {[%emt 0:02:40]} 43. Rd4 {[%emt 0:00:00]} Kg5 {[%emt 0:01:03]} 44. d6 {[%emt 0:00:00]} Ne6 {[%emt 0:11:30]} 45. Rd5+ {[%emt 0:00:00]} Kg6 {[%emt 0:00:09]} 46. Nb8 {[%emt 0:00:00]} Rb7 {[%emt 0:02:13]} 47. Nc6 {[%emt 0:00:00]} Rd7 {[%emt 0:01:07]} 48. Nb8 {[%emt 0:00:00]} Rd8 {[%emt 0:01:05]} 49. Nc6 {[%emt 0:00:00]} 1/2-1/2

[Event "Caplin Hastings Masters 2023-24"]
[Site "Hastings"]
[Date "2023.12.28"]
[Round "1.10"]
[White "Petrov, Martin"]
[Black "Gordon, Sean"]
[Result "1-0"]
[ECO "C10"]
[WhiteElo "2501"]
[BlackElo "1968"]
[Annotator "ChessBase"]
[PlyCount "57"]
[EventDate "2023.12.18"]
[EventType "swiss"]
[EventCountry "ENG"]
[SourceTitle "playchess.com"]
[Source "ChessBase"]
[SourceQuality "1"]
[TimeControl "40/6000+30:3000+30"]

1. e4 {[%emt 0:00:27]} e6 {[%emt 0:00:18]} 2. d4 {[%emt 0:01:02]} d5 {[%emt 0:00:23]} 3. Nc3 {[%emt 0:01:23]} dxe4 {[%emt 0:00:32]} 4. Nxe4 {[%emt 0:00:05]} Nd7 {[%emt 0:00:20]} 5. Bd3 {[%emt 0:05:26]} Ngf6 {[%emt 0:02:13]} 6. Qe2 {[%emt 0:00:13]} Nxe4 {[%emt 0:07:37]} 7. Bxe4 {[%emt 0:00:21]} Nf6 {[%emt 0:02:54]} 8. Bxb7 {[%emt 0:01:30]} Bxb7 {[%emt 0:07:27]} 9. Qb5+ {[%emt 0:00:16]} Qd7 {[%emt 0:00:42]} 10. Qxb7 {[%emt 0:00:08]} Qd5 {[%emt 0:01:31]} 11. Qxd5 {[%emt 0:00:53]} Nxd5 {[%emt 0:02:20]} 12. Nf3 {[%emt 0:03:35]} Be7 {[%emt 0:04:09]} 13. Ke2 {[%emt 0:01:01]} O-O {[%emt 0:05:02]} 14. Rd1 {[%emt 0:07:58]} a5 {[%emt 0:13:49]} 15. c4 {[%emt 0:08:45]} Nb6 {[%emt 0:03:55]} 16. Ne5 {[%emt 0:05:05]} Bf6 {[%emt 0:05:49]} 17. b3 {[%emt 0:00:18]} a4 {[%emt 0:04:35]} 18. Ba3 {[%emt 0:11:43]} Rfe8 {[%emt 0:02:59]} 19. Bc5 {[%emt 0:02:00]} g6 {[%emt 0:09:47]} 20. Bxb6 {[%emt 0:04:54]} Bxe5 {[%emt 0:05:42]} 21. dxe5 {[%emt 0:01:09]} cxb6 {[%emt 0:00:15]} 22. b4 {[%emt 0:00:07]} Rec8 {[%emt 0:03:56]} 23. Rac1 {[%emt 0:00:22]} Rc6 {[%emt 0:03:40]} 24. Rd6 {[%emt 0:00:42]} Rac8 {[%emt 0:00:43]} 25. c5 {[%emt 0:03:27]} bxc5 {[%emt 0:07:10]} 26. Rxc6 {[%emt 0:00:57]} Rxc6 {[%emt 0:00:04]} 27. Rxc5 {[%emt 0:00:07]} Rb6 {[%emt 0:00:45]} 28. b5 {[%emt 0:00:05]} Kg7 {[%emt 0:00:59]} 29. Kd3 {[%emt 0:00:15]} 1-0

[Event "Caplin Hastings Masters 2023-24"]
[Site "Hastings"]
[Date "2023.12.28"]
[Round "1.11"]
[White "Sugden, John N"]
[Black "Sengupta, Deep"]
[Result "0-1"]
[ECO "D48"]
[WhiteElo "1968"]
[BlackElo "2501"]
[Annotator "ChessBase"]
[PlyCount "48"]
[EventDate "2023.12.18"]
[EventType "swiss"]
[EventCountry "ENG"]
[SourceTitle "playchess.com"]
[Source "ChessBase"]
[SourceQuality "1"]
[TimeControl "40/6000+30:3000+30"]

1. d4 {[%emt 0:00:21]} d5 {[%emt 0:00:07]} 2. c4 {[%emt 0:00:22]} e6 {[%emt 0:00:05]} 3. Nc3 {[%emt 0:00:25]} c6 {[%emt 0:00:11]} 4. e3 {[%emt 0:00:56]} Nf6 {[%emt 0:00:42]} 5. Nf3 {[%emt 0:00:40]} Nbd7 {[%emt 0:00:09]} 6. Bd3 {[%emt 0:01:15]} dxc4 {[%emt 0:00:42]} 7. Bxc4 {[%emt 0:00:13]} b5 {[%emt 0:00:10]} 8. Bd3 {[%emt 0:01:05]} Bb7 {[%emt 0:00:29]} 9. O-O {[%emt 0:04:22]} a6 {[%emt 0:01:49]} 10. a4 {[%emt 0:10:21]} b4 {[%emt 0:00:31]} 11. Ne4 {[%emt 0:03:34]} c5 {[%emt 0:02:00]} 12. Nxf6+ {[%emt 0:08:50]} gxf6 {[%emt 0:02:29]} 13. Qe2 {[%emt 0:05:56]} Bd6 {[%emt 0:01:22]} 14. Bd2 {[%emt 0:04:42]} Qa5 {[%emt 0:03:52]} 15. b3 {[%emt 0:08:53]} Rg8 {[%emt 0:00:44]} 16. Ne1 {[%emt 0:05:11]} cxd4 {[%emt 0:02:37]} 17. f4 {[%emt 0:08:50]} Nc5 {[%emt 0:09:10]} 18. Bc4 {[%emt 0:03:30]} d3 {[%emt 0:00:35]} 19. Qh5 {[%emt 0:03:39]} Nxb3 {[%emt 0:09:11]} 20. Qxh7 {[%emt 0:08:25]} Nxd2 {[%emt 0:00:28]} 21. Qxg8+ {[%emt 0:02:23]} Ke7 {[%emt 0:00:05]} 22. Qh7 {[%emt 0:01:33]} Be4 {[%emt 0:01:24]} 23. Qh3 {[%emt 0:05:33]} Nxc4 {[%emt 0:00:09]} 24. Kh1 {[%emt 0:04:14]} b3 {[%emt 0:01:09]} 0-1

[Event "Caplin Hastings Masters 2023-24"]
[Site "Hastings"]
[Date "2023.12.28"]
[Round "1.12"]
[White "Rami, Talab"]
[Black "Gasanov, Eldar"]
[Result "0-1"]
[ECO "B06"]
[WhiteElo "1947"]
[BlackElo "2487"]
[Annotator "ChessBase"]
[PlyCount "52"]
[EventDate "2023.12.18"]
[EventType "swiss"]
[EventCountry "ENG"]
[SourceTitle "playchess.com"]
[Source "ChessBase"]
[SourceQuality "1"]
[TimeControl "40/6000+30:3000+30"]

1. e4 {[%emt 0:00:07]} c5 {[%emt 0:00:20]} 2. Nf3 {[%emt 0:00:14]} g6 {[%emt 0:00:12]} 3. c3 {[%emt 0:01:15]} d5 {[%emt 0:00:20]} 4. exd5 {[%emt 0:00:32]} Qxd5 {[%emt 0:00:12]} 5. d4 {[%emt 0:00:37]} Bg7 {[%emt 0:00:08]} 6. dxc5 {[%emt 0:00:47]} Qxc5 {[%emt 0:00:43]} 7. Be3 {[%emt 0:01:42]} Qc7 {[%emt 0:00:21]} 8. Bd3 {[%emt 0:03:10]} Nf6 {[%emt 0:01:29]} 9. O-O {[%emt 0:01:19]} O-O {[%emt 0:00:40]} 10. Qe2 {[%emt 0:02:38]} Nc6 {[%emt 0:04:21]} 11. Nbd2 {[%emt 0:03:20]} Nd5 {[%emt 0:02:26]} 12. Be4 {[%emt 0:04:47]} Nxe3 {[%emt 0:04:26]} 13. Qxe3 {[%emt 0:00:23]} Bd7 {[%emt 0:07:55]} 14. Rfe1 {[%emt 0:04:58]} e6 {[%emt 0:03:40]} 15. Rad1 {[%emt 0:02:45]} Rfd8 {[%emt 0:01:58]} 16. b4 {[%emt 0:11:11]} Rac8 {[%emt 0:09:48]} 17. a3 {[%emt 0:04:58]} b6 {[%emt 0:04:26]} 18. c4 {[%emt 0:13:49]} a5 {[%emt 0:03:33]} 19. Rb1 {[%emt 0:06:48]} Be8 {[%emt 0:06:10]} 20. Rec1 {[%emt 0:04:16]} Nd4 {[%emt 0:07:19]} 21. c5 {[%emt 0:03:31]} axb4 {[%emt 0:17:13]} 22. axb4 {[%emt 0:02:18]} f5 {[%emt 0:01:03]} 23. cxb6 {[%emt 0:10:09]} Qxc1+ {[%emt 0:05:58]} 24. Rxc1 {[%emt 0:00:24]} Rxc1+ {[%emt 0:00:03]} 25. Nf1 {[%emt 0:00:09]} f4 {[%emt 0:02:33]} 26. Nxd4 {[%emt 0:12:58]} fxe3 {[%emt 0:00:32]} 0-1

[Event "Caplin Hastings Masters 2023-24"]
[Site "Hastings"]
[Date "2023.12.28"]
[Round "1.13"]
[White "Wadsworth, Matthew J"]
[Black "Batchelor, Paul A"]
[Result "1-0"]
[ECO "A37"]
[WhiteElo "2448"]
[BlackElo "1937"]
[Annotator "ChessBase"]
[PlyCount "127"]
[EventDate "2023.12.18"]
[EventType "swiss"]
[EventCountry "ENG"]
[SourceTitle "playchess.com"]
[Source "ChessBase"]
[SourceQuality "1"]
[TimeControl "40/6000+30:3000+30"]

1. Nf3 {[%emt 0:00:10]} c5 {[%emt 0:01:59]} 2. c4 {[%emt 0:05:57]} Nc6 {[%emt 0:00:34]} 3. Nc3 {[%emt 0:00:35]} g6 {[%emt 0:04:40]} 4. g3 {[%emt 0:00:48]} Bg7 {[%emt 0:00:26]} 5. Bg2 {[%emt 0:00:11]} e6 {[%emt 0:00:59]} 6. h4 {[%emt 0:00:53]} h5 {[%emt 0:04:26]} 7. d3 {[%emt 0:02:16]} Nge7 {[%emt 0:04:47]} 8. Bg5 {[%emt 0:02:00]} d5 {[%emt 0:06:59]} 9. cxd5 {[%emt 0:03:44]} exd5 {[%emt 0:02:58]} 10. O-O {[%emt 0:00:08]} O-O {[%emt 0:07:54]} 11. d4 {[%emt 0:07:24]} cxd4 {[%emt 0:16:01]} 12. Nb5 {[%emt 0:00:07]} Qb6 {[%emt 0:04:23]} 13. a4 {[%emt 0:01:12]} a6 {[%emt 0:02:13]} 14. Nd6 {[%emt 0:02:54]} Be6 {[%emt 0:04:47]} 15. a5 {[%emt 0:04:34]} Qc7 {[%emt 0:05:30]} 16. Bf4 {[%emt 0:01:24]} Qd7 {[%emt 0:01:49]} 17. Qb3 {[%emt 0:01:00]} Ra7 {[%emt 0:07:45]} 18. Rfc1 {[%emt 0:04:10]} Nc8 {[%emt 0:01:09]} 19. Nxc8 {[%emt 0:01:11]} Rxc8 {[%emt 0:00:08]} 20. Ng5 {[%emt 0:00:55]} Raa8 {[%emt 0:01:06]} 21. Rc5 {[%emt 0:04:38]} Ne7 {[%emt 0:01:14]} 22. Rac1 {[%emt 0:02:10]} Rxc5 {[%emt 0:00:19]} 23. Rxc5 {[%emt 0:00:06]} Rc8 {[%emt 0:00:39]} 24. Rxc8+ {[%emt 0:11:40]} Nxc8 {[%emt 0:03:09]} 25. Qc2 {[%emt 0:14:25]} Ne7 {[%emt 0:00:10]} 26. b4 {[%emt 0:00:57]} Qc6 {[%emt 0:01:27]} 27. Qd1 {[%emt 0:03:47]} Qc3 {[%emt 0:03:09]} 28. Nxe6 {[%emt 0:05:28]} fxe6 {[%emt 0:00:09]} 29. Bh3 {[%emt 0:02:05]} Nf5 {[%emt 0:00:46]} 30. Qb1 {[%emt 0:00:11]} Bf8 {[%emt 0:01:50]} 31. b5 {[%emt 0:01:04]} Bb4 {[%emt 0:01:49]} 32. bxa6 {[%emt 0:00:45]} bxa6 {[%emt 0:00:12]} 33. Bf1 {[%emt 0:00:19]} Kf7 {[%emt 0:02:55]} 34. Be5 {[%emt 0:01:29]} Qc5 {[%emt 0:00:36]} 35. Bh3 {[%emt 0:03:27]} Qxa5 {[%emt 0:03:34]} 36. Bxf5 {[%emt 0:00:56]} exf5 {[%emt 0:00:31]} 37. Qc1 {[%emt 0:00:18]} Qd8 {[%emt 0:05:51]} 38. Qc6 {[%emt 0:02:45]} a5 {[%emt 0:02:04]} 39. Bxd4 {[%emt 0:00:32]} Be7 {[%emt 0:00:53]} 40. e3 {[%emt 0:03:22]} Qd6 {[%emt 0:00:46]} 41. Qa8 {[%emt 0:51:12]} Qd8 {[%emt 0:50:13]} 42. Qa7 {[%emt 0:00:26]} Qd6 {[%emt 0:06:28]} 43. Qxa5 {[%emt 0:01:02]} Bf6 {[%emt 0:00:00]} 44. Qa7+ {[%emt 0:00:00]} Qe7 {[%emt 0:00:00]} 45. Qa8 {[%emt 0:00:00]} Qd7 {[%emt 0:00:00]} 46. Bc5 {[%emt 0:00:00]} Be7 {[%emt 0:00:00]} 47. Bb6 {[%emt 0:00:00]} Bf6 {[%emt 0:00:00]} 48. Qa5 {[%emt 0:00:00]} Kg7 {[%emt 0:00:00]} 49. Qb4 {[%emt 0:00:00]} Qf7 {[%emt 0:00:00]} 50. Qd6 {[%emt 0:00:00]} Qb7 {[%emt 0:00:00]} 51. Bc5 {[%emt 0:00:00]} Qf7 {[%emt 0:00:00]} 52. Kg2 {[%emt 0:00:00]} Kh7 {[%emt 0:00:00]} 53. Kf3 {[%emt 0:00:00]} Bg7 {[%emt 0:00:00]} 54. Bd4 {[%emt 0:00:00]} Bxd4 {[%emt 0:00:00]} 55. exd4 {[%emt 0:00:00]} f4 {[%emt 0:00:00]} 56. Qxf4 {[%emt 0:00:00]} Qe6 {[%emt 0:00:00]} 57. Qc7+ {[%emt 0:00:00]} Kg8 {[%emt 0:00:00]} 58. Qe5 {[%emt 0:00:00]} Qg4+ {[%emt 0:00:00]} 59. Ke3 {[%emt 0:00:00]} Qd7 {[%emt 0:00:00]} 60. Qf6 {[%emt 0:00:00]} Kh7 {[%emt 0:00:00]} 61. Kf4 {[%emt 0:00:00]} Qg4+ {[%emt 0:00:00]} 62. Ke5 {[%emt 0:00:00]} Qe4+ {[%emt 0:00:00]} 63. Kd6 {[%emt 0:00:00]} Kg8 {[%emt 0:00:00]} 64. Qe6+ {[%emt 0:00:00]} 1-0

[Event "Caplin Hastings Masters 2023-24"]
[Site "Hastings"]
[Date "2023.12.28"]
[Round "1.14"]
[White "Fryer, David W"]
[Black "Gormally, Daniel W"]
[Result "0-1"]
[ECO "B90"]
[WhiteElo "1914"]
[BlackElo "2442"]
[Annotator "ChessBase"]
[PlyCount "62"]
[EventDate "2023.12.18"]
[EventType "swiss"]
[EventCountry "ENG"]
[SourceTitle "playchess.com"]
[Source "ChessBase"]
[SourceQuality "1"]
[TimeControl "40/6000+30:3000+30"]

1. e4 {[%emt 0:00:02]} c5 {[%emt 0:00:08]} 2. Nf3 {[%emt 0:00:07]} d6 {[%emt 0:00:05]} 3. d4 {[%emt 0:00:05]} cxd4 {[%emt 0:00:05]} 4. Nxd4 {[%emt 0:00:08]} Nf6 {[%emt 0:00:05]} 5. Nc3 {[%emt 0:00:12]} a6 {[%emt 0:00:05]} 6. Rg1 {[%emt 0:00:25]} b5 {[%emt 0:00:52]} 7. g4 {[%emt 0:01:01]} Bb7 {[%emt 0:00:28]} 8. Qe2 {[%emt 0:06:32]} g6 {[%emt 0:01:37]} 9. g5 {[%emt 0:02:49]} Nfd7 {[%emt 0:03:51]} 10. Be3 {[%emt 0:01:27]} Bg7 {[%emt 0:00:10]} 11. O-O-O {[%emt 0:01:22]} Nb6 {[%emt 0:03:40]} 12. f4 {[%emt 0:03:58]} N8d7 {[%emt 0:00:13]} 13. f5 {[%emt 0:04:48]} Rc8 {[%emt 0:02:53]} 14. Bh3 {[%emt 0:05:36]} Rxc3 {[%emt 0:00:52]} 15. bxc3 {[%emt 0:01:46]} Qc7 {[%emt 0:00:15]} 16. f6 {[%emt 0:15:02]} exf6 {[%emt 0:03:29]} 17. Nf5 {[%emt 0:00:22]} gxf5 {[%emt 0:01:49]} 18. exf5 {[%emt 0:00:46]} Ne5 {[%emt 0:08:32]} 19. Bg2 {[%emt 0:09:08]} Nbc4 {[%emt 0:05:33]} 20. Bf4 {[%emt 0:04:41]} fxg5 {[%emt 0:09:50]} 21. Bxg5 {[%emt 0:04:27]} Qa5 {[%emt 0:03:51]} 22. Kb1 {[%emt 0:07:19]} Qxc3 {[%emt 0:05:39]} 23. Bc1 {[%emt 0:01:38]} Qb4+ {[%emt 0:01:17]} 24. Ka1 {[%emt 0:00:50]} O-O {[%emt 0:00:24]} 25. c3 {[%emt 0:05:03]} Qxc3+ {[%emt 0:03:01]} 26. Bb2 {[%emt 0:00:28]} Nxb2 {[%emt 0:01:03]} 27. Qxb2 {[%emt 0:02:09]} Nf3 {[%emt 0:07:45]} 28. f6 {[%emt 0:00:42]} Qxf6 {[%emt 0:00:28]} 29. Qxf6 {[%emt 0:01:26]} Bxf6+ {[%emt 0:00:04]} 30. Kb1 {[%emt 0:00:07]} Be4+ {[%emt 0:00:04]} 31. Kc1 {[%emt 0:00:12]} Rc8# {[%emt 0:00:03]} 0-1

[Event "Caplin Hastings Masters 2023-24"]
[Site "Hastings"]
[Date "2023.12.28"]
[Round "1.15"]
[White "Royal, Shreyas"]
[Black "Honey, Luke Anthony"]
[Result "1-0"]
[ECO "D11"]
[WhiteElo "2438"]
[BlackElo "1907"]
[Annotator "ChessBase"]
[PlyCount "95"]
[EventDate "2023.12.18"]
[EventType "swiss"]
[EventCountry "ENG"]
[SourceTitle "playchess.com"]
[Source "ChessBase"]
[SourceQuality "1"]
[TimeControl "40/6000+30:3000+30"]

1. Nf3 {[%emt 0:00:04]} d5 {[%emt 0:00:12]} 2. d4 {[%emt 0:00:06]} Nf6 {[%emt 0:00:11]} 3. c4 {[%emt 0:00:07]} c6 {[%emt 0:00:06]} 4. e3 {[%emt 0:00:22]} Bg4 {[%emt 0:00:59]} 5. Nc3 {[%emt 0:00:20]} e6 {[%emt 0:00:44]} 6. h3 {[%emt 0:01:18]} Bh5 {[%emt 0:01:38]} 7. Qb3 {[%emt 0:00:14]} Qc7 {[%emt 0:03:31]} 8. Ne5 {[%emt 0:02:51]} Nbd7 {[%emt 0:01:51]} 9. g4 {[%emt 0:00:17]} Bg6 {[%emt 0:00:20]} 10. Nxg6 {[%emt 0:00:13]} hxg6 {[%emt 0:00:16]} 11. Bg2 {[%emt 0:03:07]} Be7 {[%emt 0:06:11]} 12. Bd2 {[%emt 0:04:41]} Nb6 {[%emt 0:09:16]} 13. cxd5 {[%emt 0:00:52]} exd5 {[%emt 0:01:22]} 14. O-O-O {[%emt 0:00:59]} Nc4 {[%emt 0:06:48]} 15. Be1 {[%emt 0:00:24]} Nd6 {[%emt 0:00:57]} 16. f3 {[%emt 0:00:28]} Qb6 {[%emt 0:10:46]} 17. e4 {[%emt 0:01:38]} Qxb3 {[%emt 0:04:54]} 18. axb3 {[%emt 0:00:06]} dxe4 {[%emt 0:00:15]} 19. fxe4 {[%emt 0:00:07]} Nd7 {[%emt 0:03:21]} 20. Bg3 {[%emt 0:00:08]} Nb6 {[%emt 0:07:25]} 21. Rhf1 {[%emt 0:04:47]} O-O {[%emt 0:02:34]} 22. e5 {[%emt 0:01:32]} Ne8 {[%emt 0:01:09]} 23. d5 {[%emt 0:00:17]} cxd5 {[%emt 0:02:25]} 24. Nxd5 {[%emt 0:00:14]} Nxd5 {[%emt 0:07:21]} 25. Rxd5 {[%emt 0:00:05]} Rc8+ {[%emt 0:04:01]} 26. Kb1 {[%emt 0:00:10]} Rd8 {[%emt 0:06:33]} 27. Rc1 {[%emt 0:05:07]} b6 {[%emt 0:02:26]} 28. Be1 {[%emt 0:00:37]} a5 {[%emt 0:02:20]} 29. Rc6 {[%emt 0:00:13]} Rxd5 {[%emt 0:04:10]} 30. Bxd5 {[%emt 0:00:06]} Bd8 {[%emt 0:00:44]} 31. Bc4 {[%emt 0:01:31]} Nc7 {[%emt 0:02:12]} 32. Rxb6 {[%emt 0:00:15]} Nd5 {[%emt 0:01:13]} 33. Ra6 {[%emt 0:00:49]} Nb4 {[%emt 0:01:09]} 34. Rxg6 {[%emt 0:00:16]} Bc7 {[%emt 0:02:21]} 35. e6 {[%emt 0:00:26]} Kh7 {[%emt 0:02:27]} 36. Rg5 {[%emt 0:00:13]} fxe6 {[%emt 0:00:42]} 37. Bc3 {[%emt 0:01:40]} g6 {[%emt 0:02:33]} 38. Rb5 {[%emt 0:00:39]} Rb8 {[%emt 0:01:24]} 39. Rxb8 {[%emt 0:02:09]} Bxb8 {[%emt 0:00:09]} 40. Bxe6 {[%emt 0:00:11]} Bf4 {[%emt 0:01:38]} 41. Bf6 {[%emt 0:50:04]} Bd2 {[%emt 0:51:32]} 42. h4 {[%emt 0:00:55]} Kh6 {[%emt 0:00:36]} 43. Bc4 {[%emt 0:01:15]} Kh7 {[%emt 0:01:32]} 44. g5 {[%emt 0:00:22]} Be1 {[%emt 0:01:08]} 45. h5 {[%emt 0:00:05]} Bd2 {[%emt 0:02:50]} 46. Bf7 {[%emt 0:00:06]} Bxg5 {[%emt 0:00:52]} 47. hxg6+ {[%emt 0:00:07]} Kh6 {[%emt 0:00:07]} 48. Bxg5+ {[%emt 0:00:03]} 1-0

[Event "Caplin Hastings Masters 2023-24"]
[Site "Hastings"]
[Date "2023.12.28"]
[Round "1.16"]
[White "Norinkeviciute, Rasa"]
[Black "Willow, Jonah B"]
[Result "0-1"]
[ECO "A13"]
[WhiteElo "1905"]
[BlackElo "2427"]
[Annotator "ChessBase"]
[PlyCount "112"]
[EventDate "2023.12.18"]
[EventType "swiss"]
[EventCountry "ENG"]
[SourceTitle "playchess.com"]
[Source "ChessBase"]
[SourceQuality "1"]
[TimeControl "40/6000+30:3000+30"]

1. c4 {[%emt 0:00:10]} e6 {[%emt 0:00:42]} 2. g3 {[%emt 0:00:14]} d5 {[%emt 0:00:31]} 3. Bg2 {[%emt 0:00:22]} d4 {[%emt 0:00:34]} 4. d3 {[%emt 0:02:19]} Nc6 {[%emt 0:00:44]} 5. Nf3 {[%emt 0:02:11]} Bb4+ {[%emt 0:02:04]} 6. Nbd2 {[%emt 0:00:48]} a5 {[%emt 0:01:13]} 7. O-O {[%emt 0:00:33]} Nf6 {[%emt 0:01:13]} 8. a3 {[%emt 0:00:53]} Be7 {[%emt 0:00:48]} 9. Re1 {[%emt 0:02:16]} O-O {[%emt 0:01:11]} 10. Nf1 {[%emt 0:00:44]} Nd7 {[%emt 0:02:49]} 11. Rb1 {[%emt 0:03:46]} e5 {[%emt 0:02:47]} 12. e3 {[%emt 0:04:33]} a4 {[%emt 0:04:04]} 13. exd4 {[%emt 0:06:23]} exd4 {[%emt 0:00:43]} 14. N1d2 {[%emt 0:09:16]} Nc5 {[%emt 0:06:13]} 15. Ne4 {[%emt 0:03:37]} Nxe4 {[%emt 0:00:45]} 16. Rxe4 {[%emt 0:00:11]} Bf5 {[%emt 0:00:07]} 17. Re1 {[%emt 0:01:39]} Na5 {[%emt 0:01:24]} 18. Re5 {[%emt 0:02:11]} Be6 {[%emt 0:18:17]} 19. Re4 {[%emt 0:08:28]} Bf6 {[%emt 0:04:22]} 20. Bf4 {[%emt 0:12:47]} c5 {[%emt 0:04:25]} 21. Be5 {[%emt 0:05:22]} Be7 {[%emt 0:01:11]} 22. h4 {[%emt 0:03:23]} Qd7 {[%emt 0:03:22]} 23. Bf4 {[%emt 0:02:36]} Bf5 {[%emt 0:02:17]} 24. Ne5 {[%emt 0:02:57]} Qd8 {[%emt 0:00:23]} 25. Re1 {[%emt 0:01:32]} Bd6 {[%emt 0:04:47]} 26. Bd5 {[%emt 0:03:36]} Be6 {[%emt 0:01:11]} 27. Bg2 {[%emt 0:21:19]} Qc7 {[%emt 0:04:12]} 28. Qf3 {[%emt 0:05:47]} Rfe8 {[%emt 0:02:51]} 29. h5 {[%emt 0:02:28]} Bf5 {[%emt 0:09:16]} 30. Ng4 {[%emt 0:01:43]} Bxf4 {[%emt 0:00:13]} 31. gxf4 {[%emt 0:00:07]} Qd6 {[%emt 0:02:50]} 32. Qg3 {[%emt 0:01:03]} Rab8 {[%emt 0:03:03]} 33. h6 {[%emt 0:01:05]} Bxg4 {[%emt 0:00:46]} 34. f3 {[%emt 0:00:24]} Qxh6 {[%emt 0:02:41]} 35. fxg4 {[%emt 0:00:05]} Qd6 {[%emt 0:01:47]} 36. Qf2 {[%emt 0:00:39]} Nc6 {[%emt 0:00:47]} 37. Re4 {[%emt 0:00:39]} Rxe4 {[%emt 0:02:04]} 38. Bxe4 {[%emt 0:00:03]} Ne7 {[%emt 0:00:30]} 39. Rf1 {[%emt 0:00:49]} f5 {[%emt 0:06:38]} 40. gxf5 {[%emt 0:00:29]} Qf6 {[%emt 0:00:17]} 41. Qf3 {[%emt 0:06:02]} Nxf5 {[%emt 0:01:53]} 42. Rf2 {[%emt 0:07:25]} Re8 {[%emt 0:11:13]} 43. Qh3 {[%emt 0:03:38]} g6 {[%emt 0:02:40]} 44. Rg2 {[%emt 0:08:14]} Ne3 {[%emt 0:11:57]} 45. Rh2 {[%emt 0:01:38]} h5 {[%emt 0:01:29]} 46. Qg3 {[%emt 0:03:57]} Ng4 {[%emt 0:01:25]} 47. Rh4 {[%emt 0:05:57]} Kg7 {[%emt 0:04:36]} 48. Kg2 {[%emt 0:07:32]} Ne3+ {[%emt 0:09:18]} 49. Kg1 {[%emt 0:01:49]} Nf5 {[%emt 0:01:04]} 50. Bxf5 {[%emt 0:02:08]} Qxf5 {[%emt 0:00:05]} 51. Qf3 {[%emt 0:01:46]} Kh6 {[%emt 0:00:41]} 52. Rh2 {[%emt 0:03:59]} Re1+ {[%emt 0:01:21]} 53. Kg2 {[%emt 0:00:59]} Re3 {[%emt 0:00:06]} 54. Qxb7 {[%emt 0:01:06]} Qg4+ {[%emt 0:00:40]} 55. Kf1 {[%emt 0:00:51]} Qd1+ {[%emt 0:00:04]} 56. Kg2 {[%emt 0:00:24]} Qd2+ {[%emt 0:00:08]} 0-1